[Event "Portugal Honour 2021"]
[Site "Fatima"]
[Date "2021.04.06"]
[Round "1.6"]
[White "Santos, Julio"]
[Black "Goncalves, Carlos"]
[Result "0-1"]
[ECO "B12"]
[WhiteElo "1884"]
[BlackElo "1600"]
[Annotator "NA"]
[PlyCount "90"]
[EventDate "2021.04.06"]
[EventType "tourn"]
[EventCountry "POR"]
[SourceTitle "playchess.com"]
[Source "ChessBase"]
[SourceQuality "1"]
[TimeControl "5400+30"]

1. e4 {[%emt 0:00:00]} c6 {[%emt 0:00:31]} 2. d4 {[%emt 0:00:04]} d5 {[%emt 0:00:49]} 3. e5 {[%emt 0:05:11]} c5 {[%emt 0:01:35]} 4. Bb5+ {[%emt 0:00:44]} Bd7 {[%emt 0:00:52]} 5. Bxd7+ {[%emt 0:00:33]} Nxd7 {[%emt 0:02:33]} 6. Ne2 {[%emt 0:00:39]} e6 {[%emt 0:02:22]} 7. O-O {[%emt 0:00:34]} cxd4 {[%emt 0:01:35]} 8. Qxd4 {[%emt 0:00:18]} Bc5 {[%emt 0:00:54]} 9. Qa4 {[%emt 0:03:08]} Ne7 {[%emt 0:04:39]} 10. Kh1 {[%emt 0:02:48]} Ng6 {[%emt 0:03:58]} 11. f4 {[%emt 0:00:48]} O-O {[%emt 0:03:05]} 12. Nd4 {[%emt 0:08:48]} a6 {[%emt 0:02:03]} 13. c3 {[%emt 0:03:53]} Rc8 {[%emt 0:03:21]} 14. Nd2 {[%emt 0:00:52]} Ba7 {[%emt 0:05:25]} 15. N2f3 {[%emt 0:00:42]} Nc5 {[%emt 0:02:58]} 16. Qd1 {[%emt 0:01:12]} Ne4 {[%emt 0:03:04]} 17. Qe1 {[%emt 0:02:52]} Ne7 {[%emt 0:13:14]} 18. Be3 Bb8 19. g4 {[%emt 0:07:39]} Qd7 {[%emt 0:02:43]} 20. g5 {[%emt 0:03:59]} Nc6 {[%emt 0:06:33]} 21. Rg1 {[%emt 0:03:37]} Ba7 {[%emt 0:01:48]} 22. Qh4 {[%emt 0:02:02]} Nxd4 {[%emt 0:00:39]} 23. Bxd4 {[%emt 0:00:58]} Bxd4 {[%emt 0:00:33]} 24. Nxd4 {[%emt 0:00:11]} Qe7 {[%emt 0:03:47]} 25. Rae1 {[%emt 0:01:41]} g6 {[%emt 0:04:39]} 26. Qh6 {[%emt 0:05:18]} Qc5 {[%emt 0:04:25]} 27. Re3 {[%emt 0:00:36]} Nf2+ {[%emt 0:00:20]} 28. Kg2 {[%emt 0:00:38]} Ng4 {[%emt 0:00:15]} 29. Qh3 {[%emt 0:00:19]} Nxe3+ {[%emt 0:00:46]} 30. Qxe3 {[%emt 0:00:41]} Qc4 {[%emt 0:03:02]} 31. a3 {[%emt 0:00:32]} Qa2 {[%emt 0:02:03]} 32. Qf2 {[%emt 0:00:56]} Rc7 {[%emt 0:01:44]} 33. Re1 {[%emt 0:00:44]} Rfc8 {[%emt 0:02:25]} 34. Kf3 {[%emt 0:03:46]} Qc4 {[%emt 0:01:14]} 35. Re3 {[%emt 0:01:12]} Qa4 {[%emt 0:02:15]} 36. Rd3 {[%emt 0:01:18]} Qe8 37. Qh4 {[%emt 0:01:36]} Qf8 {[%emt 0:04:57]} 38. Kf2 {[%emt 0:12:33]} Rc4 {[%emt 0:02:44]} 39. Nc2 {[%emt 0:00:51]} Qc5+ {[%emt 0:01:16]} 40. Kg2 {[%emt 0:02:11]} Re4 {[%emt 0:02:42]} 41. Nd4 {[%emt 0:08:24]} Qf8 {[%emt 0:00:56]} 42. Rd2 Rc4 {[%emt 0:00:31]} 43. Qf2 {[%emt 0:05:32]} Qc5 {[%emt 0:01:01]} 44. h4 Qf8 45. Kf3 {[%emt 0:08:34]} h6 {[%emt 0:00:55]} 0-1

[Event "Portugal Honour 2021"]
[Site "Fatima"]
[Date "2021.04.06"]
[Round "1.7"]
[White "Morais, Vitor"]
[Black "Barrento, Jorge"]
[Result "1-0"]
[ECO "A05"]
[WhiteElo "1904"]
[BlackElo "1724"]
[Annotator "NA"]
[PlyCount "93"]
[EventDate "2021.04.06"]
[EventType "tourn"]
[EventCountry "POR"]
[SourceTitle "playchess.com"]
[Source "ChessBase"]
[SourceQuality "1"]
[TimeControl "5400+30"]

1. Nf3 {[%emt 0:00:00]} Nf6 {[%emt 0:00:00]} 2. g3 {[%emt 0:00:00]} d5 {[%emt 0:00:26]} 3. Bg2 {[%emt 0:00:00]} g6 {[%emt 0:00:27]} 4. c4 {[%emt 0:00:11]} c6 {[%emt 0:00:32]} 5. cxd5 {[%emt 0:00:08]} cxd5 {[%emt 0:00:57]} 6. O-O {[%emt 0:00:08]} Bg7 {[%emt 0:00:20]} 7. Nc3 {[%emt 0:00:10]} O-O 8. d3 Nc6 {[%emt 0:05:07]} 9. Bg5 {[%emt 0:02:48]} h6 {[%emt 0:04:25]} 10. Bd2 {[%emt 0:00:09]} Ne8 {[%emt 0:05:24]} 11. Rc1 {[%emt 0:01:18]} Nc7 {[%emt 0:06:39]} 12. a3 {[%emt 0:00:14]} d4 {[%emt 0:01:03]} 13. Na4 {[%emt 0:00:50]} e5 {[%emt 0:01:22]} 14. Nc5 {[%emt 0:00:20]} Ne6 {[%emt 0:01:53]} 15. b4 {[%emt 0:00:47]} a6 {[%emt 0:03:05]} 16. Qb3 {[%emt 0:02:27]} Qe7 {[%emt 0:03:06]} 17. Rc2 {[%emt 0:00:22]} Nxc5 {[%emt 0:02:01]} 18. Rxc5 {[%emt 0:00:08]} Be6 {[%emt 0:03:42]} 19. Qb1 Qd7 {[%emt 0:09:04]} 20. Rfc1 {[%emt 0:00:25]} f5 {[%emt 0:04:38]} 21. Be1 {[%emt 0:03:35]} g5 {[%emt 0:05:45]} 22. a4 {[%emt 0:00:10]} g4 {[%emt 0:10:10]} 23. b5 {[%emt 0:00:15]} axb5 {[%emt 0:02:28]} 24. axb5 gxf3 {[%emt 0:01:46]} 25. bxc6 {[%emt 0:00:23]} bxc6 {[%emt 0:01:32]} 26. Bxf3 {[%emt 0:00:11]} Rab8 {[%emt 0:03:33]} 27. Bxc6 {[%emt 0:00:42]} Qf7 {[%emt 0:02:35]} 28. Rb5 {[%emt 0:00:11]} Rxb5 {[%emt 0:02:08]} 29. Qxb5 {[%emt 0:00:10]} f4 {[%emt 0:00:05]} 30. Bf3 {[%emt 0:00:39]} fxg3 {[%emt 0:02:17]} 31. hxg3 {[%emt 0:00:23]} h5 {[%emt 0:00:09]} 32. Rc6 {[%emt 0:00:15]} Kh8 {[%emt 0:02:53]} 33. Qb6 {[%emt 0:01:19]} Re8 {[%emt 0:02:48]} 34. Rc7 {[%emt 0:00:22]} Qg6 {[%emt 0:01:43]} 35. Qb7 {[%emt 0:00:28]} Bf6 {[%emt 0:03:02]} 36. Be4 {[%emt 0:01:55]} Bf5 {[%emt 0:01:18]} 37. Bxf5 {[%emt 0:00:28]} Qxf5 {[%emt 0:00:02]} 38. Qe4 {[%emt 0:00:36]} Qxe4 {[%emt 0:00:51]} 39. dxe4 {[%emt 0:00:09]} Re7 {[%emt 0:00:20]} 40. Rxe7 {[%emt 0:01:12]} Bxe7 {[%emt 0:00:01]} 41. f4 {[%emt 0:00:27]} Kg7 {[%emt 0:00:59]} 42. Kg2 {[%emt 0:00:12]} exf4 {[%emt 0:00:34]} 43. gxf4 {[%emt 0:00:10]} Kg6 {[%emt 0:00:57]} 44. Kf3 {[%emt 0:00:05]} Bc5 {[%emt 0:00:20]} 45. Bh4 {[%emt 0:00:16]} Bb6 {[%emt 0:00:18]} 46. f5+ {[%emt 0:00:10]} Kf7 {[%emt 0:02:49]} 47. e5 1-0

[Event "Portugal Honour 2021"]
[Site "Fatima"]
[Date "2021.04.06"]
[Round "1.8"]
[White "Basilio, Rodrigo"]
[Black "Lavrador, Rodolfo"]
[Result "1-0"]
[ECO "C09"]
[WhiteElo "1849"]
[BlackElo "1815"]
[Annotator "NA"]
[PlyCount "77"]
[EventDate "2021.04.06"]
[EventType "tourn"]
[EventCountry "POR"]
[SourceTitle "playchess.com"]
[Source "ChessBase"]
[SourceQuality "1"]
[TimeControl "5400+30"]

1. e4 {[%emt 0:00:00]} e6 {[%emt 0:00:00]} 2. d4 {[%emt 0:00:00]} d5 {[%emt 0:00:00]} 3. Nd2 {[%emt 0:00:32]} c5 {[%emt 0:00:13]} 4. Ngf3 {[%emt 0:00:08]} Nc6 {[%emt 0:00:11]} 5. exd5 {[%emt 0:00:41]} exd5 {[%emt 0:00:16]} 6. Bb5 {[%emt 0:00:12]} Nf6 {[%emt 0:01:19]} 7. O-O {[%emt 0:04:19]} Be7 {[%emt 0:00:56]} 8. dxc5 {[%emt 0:07:35]} O-O {[%emt 0:01:27]} 9. Bxc6 {[%emt 0:18:59]} bxc6 {[%emt 0:00:32]} 10. b4 {[%emt 0:00:19]} a5 {[%emt 0:02:52]} 11. c3 {[%emt 0:01:16]} Bg4 {[%emt 0:00:31]} 12. Qc2 {[%emt 0:01:29]} Re8 {[%emt 0:04:48]} 13. Nd4 {[%emt 0:17:35]} Qc7 {[%emt 0:01:04]} 14. N2b3 {[%emt 0:01:02]} axb4 {[%emt 0:05:32]} 15. cxb4 {[%emt 0:00:08]} Bd7 {[%emt 0:00:52]} 16. f3 {[%emt 0:00:37]} Reb8 {[%emt 0:01:56]} 17. Re1 {[%emt 0:04:31]} Bd8 {[%emt 0:02:52]} 18. Bd2 {[%emt 0:05:26]} h6 {[%emt 0:02:40]} 19. a4 {[%emt 0:02:45]} Nh7 {[%emt 0:01:56]} 20. Qd3 {[%emt 0:18:10]} Nf8 {[%emt 0:03:03]} 21. b5 {[%emt 0:00:57]} cxb5 {[%emt 0:01:43]} 22. axb5 {[%emt 0:01:04]} Rxa1 {[%emt 0:03:27]} 23. Rxa1 {[%emt 0:00:07]} Bf6 {[%emt 0:00:28]} 24. c6 {[%emt 0:07:32]} Be8 {[%emt 0:02:34]} 25. Ba5 {[%emt 0:02:34]} Qc8 {[%emt 0:02:01]} 26. c7 {[%emt 0:00:48]} Rb7 {[%emt 0:02:21]} 27. b6 {[%emt 0:01:34]} Nd7 {[%emt 0:00:48]} 28. Qa6 {[%emt 0:02:00]} Bxd4+ {[%emt 0:00:33]} 29. Nxd4 {[%emt 0:00:02]} Nc5 {[%emt 0:00:42]} 30. Qe2 {[%emt 0:00:08]} Ne6 {[%emt 0:02:32]} 31. Nf5 {[%emt 0:00:16]} Qd7 {[%emt 0:01:29]} 32. Ne7+ {[%emt 0:00:06]} Qxe7 {[%emt 0:00:28]} 33. c8=Q {[%emt 0:00:05]} Kh7 {[%emt 0:02:57]} 34. Qd3+ {[%emt 0:00:55]} g6 {[%emt 0:00:10]} 35. Qxd5 {[%emt 0:00:16]} Rd7 {[%emt 0:00:34]} 36. Qe4 {[%emt 0:00:15]} Rd4 {[%emt 0:00:35]} 37. Qe3 {[%emt 0:00:48]} Bd7 {[%emt 0:01:17]} 38. Qc7 {[%emt 0:00:26]} Qf6 {[%emt 0:00:42]} 39. Bc3 {[%emt 0:00:10]} 1-0

[Event "Portugal Honour 2021"]
[Site "Fatima"]
[Date "2021.04.06"]
[Round "1.9"]
[White "Pina, Tiago"]
[Black "Santos, Ruben"]
[Result "0-1"]
[ECO "B12"]
[WhiteElo "1843"]
[BlackElo "1759"]
[Annotator "NA"]
[PlyCount "94"]
[EventDate "2021.04.06"]
[EventType "tourn"]
[EventCountry "POR"]
[SourceTitle "playchess.com"]
[Source "ChessBase"]
[SourceQuality "1"]
[TimeControl "5400+30"]

1. e4 {[%emt 0:00:00]} c6 {[%emt 0:00:00]} 2. d4 {[%emt 0:00:00]} d5 {[%emt 0:00:00]} 3. e5 {[%emt 0:00:00]} c5 {[%emt 0:00:00]} 4. dxc5 {[%emt 0:00:00]} Nc6 {[%emt 0:00:00]} 5. Nf3 {[%emt 0:00:06]} Bg4 {[%emt 0:00:23]} 6. Bf4 {[%emt 0:00:41]} e6 {[%emt 0:00:30]} 7. Bd3 {[%emt 0:01:51]} Bxc5 {[%emt 0:01:00]} 8. O-O {[%emt 0:00:36]} Nge7 {[%emt 0:00:30]} 9. h3 {[%emt 0:03:54]} Bh5 {[%emt 0:03:18]} 10. c3 {[%emt 0:04:18]} Ng6 {[%emt 0:02:24]} 11. Bxg6 {[%emt 0:01:19]} Bxg6 {[%emt 0:00:03]} 12. Nbd2 {[%emt 0:01:57]} O-O {[%emt 0:00:57]} 13. Nb3 {[%emt 0:02:02]} Bb6 {[%emt 0:01:27]} 14. Re1 {[%emt 0:00:29]} Qc7 {[%emt 0:02:57]} 15. Be3 {[%emt 0:06:21]} Be4 {[%emt 0:02:57]} 16. Bxb6 {[%emt 0:24:04]} axb6 {[%emt 0:00:31]} 17. Nfd4 {[%emt 0:02:50]} Nxe5 {[%emt 0:06:41]} 18. f3 {[%emt 0:00:15]} Bg6 {[%emt 0:00:11]} 19. Nb5 {[%emt 0:00:26]} Qb8 {[%emt 0:00:03]} 20. Qd4 {[%emt 0:01:07]} Nc4 {[%emt 0:05:38]} 21. Re2 {[%emt 0:00:44]} Qd8 {[%emt 0:01:28]} 22. f4 {[%emt 0:03:48]} Ra6 {[%emt 0:09:21]} 23. Qd1 {[%emt 0:08:06]} Qh4 {[%emt 0:15:15]} 24. Rf2 {[%emt 0:01:51]} Be4 {[%emt 0:06:32]} 25. Qe2 {[%emt 0:00:54]} f5 {[%emt 0:01:40]} 26. N3d4 {[%emt 0:09:45]} Rf6 {[%emt 0:01:46]} 27. b3 {[%emt 0:03:19]} e5 {[%emt 0:06:20]} 28. bxc4 {[%emt 0:03:44]} exd4 {[%emt 0:00:23]} 29. cxd4 {[%emt 0:00:17]} Rg6 {[%emt 0:02:19]} 30. Rf3 {[%emt 0:03:59]} h6 {[%emt 0:01:34]} 31. Nc7 {[%emt 0:04:53]} Ra5 {[%emt 0:08:40]} 32. Nxd5 {[%emt 0:01:28]} Kh7 {[%emt 0:05:37]} 33. Raf1 {[%emt 0:03:28]} Bxf3 {[%emt 0:02:10]} 34. Rxf3 {[%emt 0:00:08]} Qd8 {[%emt 0:01:06]} 35. Re3 {[%emt 0:00:32]} b5 {[%emt 0:02:24]} 36. Re8 {[%emt 0:00:52]} Rxa2 {[%emt 0:02:20]} 37. Rh8+ {[%emt 0:02:15]} Kxh8 {[%emt 0:01:14]} 38. Qxa2 {[%emt 0:00:06]} bxc4 {[%emt 0:00:27]} 39. Qxc4 {[%emt 0:00:13]} Rc6 {[%emt 0:00:29]} 40. Qb5 {[%emt 0:00:24]} Rd6 {[%emt 0:01:31]} 41. Ne3 {[%emt 0:00:13]} Rxd4 {[%emt 0:00:14]} 42. Nxf5 {[%emt 0:02:19]} Rd5 {[%emt 0:01:03]} 43. Qxb7 {[%emt 0:00:05]} Rxf5 {[%emt 0:00:27]} 44. Qe4 {[%emt 0:00:12]} Rd5 {[%emt 0:00:46]} 45. Kh2 {[%emt 0:00:16]} Rd2 {[%emt 0:00:33]} 46. Qg6 {[%emt 0:01:10]} Rd4 {[%emt 0:02:40]} 47. f5 {[%emt 0:00:45]} Qd6+ {[%emt 0:00:03]} 0-1

[Event "Portugal Honour 2021"]
[Site "Fatima"]
[Date "2021.04.06"]
[Round "1.10"]
[White "Sarabando, Rodrigo"]
[Black "Bartolo, Filipe"]
[Result "1-0"]
[ECO "E91"]
[WhiteElo "1682"]
[BlackElo "1876"]
[Annotator "NA"]
[PlyCount "95"]
[EventDate "2021.04.06"]
[EventType "tourn"]
[EventCountry "POR"]
[SourceTitle "playchess.com"]
[Source "ChessBase"]
[SourceQuality "1"]
[TimeControl "5400+30"]

1. d4 {[%emt 0:00:00]} Nf6 {[%emt 0:00:00]} 2. c4 {[%emt 0:00:03]} g6 {[%emt 0:00:00]} 3. Nc3 {[%emt 0:00:41]} Bg7 {[%emt 0:00:00]} 4. e4 {[%emt 0:00:55]} d6 {[%emt 0:00:00]} 5. Nf3 {[%emt 0:00:29]} O-O {[%emt 0:00:01]} 6. Be2 {[%emt 0:01:01]} Nbd7 {[%emt 0:00:16]} 7. O-O {[%emt 0:02:19]} e5 8. d5 {[%emt 0:02:00]} Nc5 {[%emt 0:00:43]} 9. Qc2 {[%emt 0:01:23]} a5 {[%emt 0:00:08]} 10. b3 {[%emt 0:01:40]} Ne8 {[%emt 0:08:59]} 11. Be3 {[%emt 0:09:41]} f5 {[%emt 0:04:57]} 12. a3 {[%emt 0:02:52]} f4 {[%emt 0:26:07]} 13. Bxc5 {[%emt 0:09:14]} dxc5 {[%emt 0:00:06]} 14. b4 {[%emt 0:01:42]} axb4 {[%emt 0:00:06]} 15. axb4 {[%emt 0:00:11]} Rxa1 {[%emt 0:00:04]} 16. Rxa1 {[%emt 0:00:09]} cxb4 {[%emt 0:00:04]} 17. Na4 {[%emt 0:00:20]} g5 18. h3 {[%emt 0:08:37]} h5 {[%emt 0:26:14]} 19. Nh2 g4 {[%emt 0:14:18]} 20. hxg4 {[%emt 0:07:36]} hxg4 {[%emt 0:00:08]} 21. Bxg4 {[%emt 0:03:28]} Bxg4 {[%emt 0:00:38]} 22. Nxg4 {[%emt 0:00:08]} f3 {[%emt 0:03:13]} 23. gxf3 {[%emt 0:05:19]} Rxf3 {[%emt 0:00:30]} 24. Qe2 {[%emt 0:03:11]} Rh3 {[%emt 0:06:40]} 25. Qf1 {[%emt 0:01:31]} Qh4 {[%emt 0:08:23]} 26. Qg2 {[%emt 0:00:19]} Ra3 {[%emt 0:00:50]} 27. Rxa3 {[%emt 0:01:23]} bxa3 {[%emt 0:00:02]} 28. f3 {[%emt 0:01:04]} Kf7 {[%emt 0:00:53]} 29. Kf1 {[%emt 0:01:13]} Qg5 {[%emt 0:00:36]} 30. Qc2 {[%emt 0:01:43]} Qf4 {[%emt 0:00:31]} 31. Ke2 {[%emt 0:04:16]} Nd6 {[%emt 0:00:07]} 32. Nc5 {[%emt 0:01:37]} b5 {[%emt 0:00:50]} 33. Ne6 {[%emt 0:00:32]} Qg3 {[%emt 0:00:21]} 34. Qb3 {[%emt 0:06:56]} Nxe4 {[%emt 0:00:35]} 35. Qxa3 {[%emt 0:02:36]} bxc4 {[%emt 0:00:25]} 36. Qa5 {[%emt 0:04:47]} Qg2+ 37. Ke3 Qg1+ {[%emt 0:01:03]} 38. Kxe4 {[%emt 0:01:14]} Qb1+ {[%emt 0:00:08]} 39. Ke3 Qg1+ {[%emt 0:00:35]} 40. Ke2 {[%emt 0:01:12]} Qg2+ {[%emt 0:00:24]} 41. Nf2 {[%emt 0:01:43]} e4 {[%emt 0:00:55]} 42. Qxc7+ {[%emt 0:00:25]} Kg8 {[%emt 0:00:17]} 43. Qxg7+ {[%emt 0:01:22]} Qxg7 {[%emt 0:00:06]} 44. Nxg7 {[%emt 0:00:19]} exf3+ {[%emt 0:00:06]} 45. Kxf3 {[%emt 0:00:12]} Kxg7 {[%emt 0:00:04]} 46. Nd1 {[%emt 0:00:26]} Kf6 {[%emt 0:00:07]} 47. Ke4 {[%emt 0:00:05]} Ke7 {[%emt 0:00:04]} 48. Kd4 {[%emt 0:00:14]} 1-0

[Event "Portugal Honour 2021"]
[Site "Fatima"]
[Date "2021.04.07"]
[Round "2.6"]
[White "Goncalves, Carlos"]
[Black "Bartolo, Filipe"]
[Result "0-1"]
[ECO "A05"]
[WhiteElo "1600"]
[BlackElo "1876"]
[Annotator "NA RC"]
[PlyCount "62"]
[EventDate "2021.04.06"]
[EventType "tourn"]
[EventCountry "POR"]
[SourceTitle "playchess.com"]
[Source "ChessBase"]
[SourceQuality "1"]
[TimeControl "5400+30"]

1. Nf3 {[%emt 0:00:00]} Nf6 {[%emt 0:02:43]} 2. g3 {[%emt 0:00:47]} g6 {[%emt 0:00:15]} 3. Bg2 {[%emt 0:00:16]} Bg7 {[%emt 0:00:04]} 4. O-O {[%emt 0:00:17]} O-O {[%emt 0:00:03]} 5. d3 {[%emt 0:00:35]} d6 {[%emt 0:00:36]} 6. c3 {[%emt 0:01:56]} e5 {[%emt 0:00:09]} 7. Nbd2 {[%emt 0:01:00]} c5 {[%emt 0:05:19]} 8. a4 {[%emt 0:02:57]} Nc6 {[%emt 0:00:25]} 9. e4 {[%emt 0:00:18]} Ne8 {[%emt 0:19:34]} 10. Re1 {[%emt 0:03:48]} f5 {[%emt 0:00:40]} 11. exf5 {[%emt 0:01:42]} gxf5 {[%emt 0:00:17]} 12. Nf1 {[%emt 0:01:24]} Nc7 {[%emt 0:18:23]} 13. Ng5 {[%emt 0:05:37]} h6 {[%emt 0:01:29]} 14. Nf3 {[%emt 0:00:11]} Qf6 {[%emt 0:11:31]} 15. h3 {[%emt 0:04:06]} Be6 {[%emt 0:03:55]} 16. a5 {[%emt 0:02:29]} d5 {[%emt 0:01:36]} 17. d4 {[%emt 0:09:57]} cxd4 {[%emt 0:03:44]} 18. cxd4 {[%emt 0:00:13]} e4 {[%emt 0:00:52]} 19. Ne5 {[%emt 0:04:12]} Nb5 {[%emt 0:01:05]} 20. Nxc6 {[%emt 0:01:21]} bxc6 {[%emt 0:00:07]} 21. Be3 {[%emt 0:01:04]} Nxd4 {[%emt 0:03:01]} 22. Bxd4 {[%emt 0:00:18]} Qxd4 {[%emt 0:00:16]} 23. Qxd4 {[%emt 0:00:44]} Bxd4 {[%emt 0:00:07]} 24. Rac1 {[%emt 0:00:39]} c5 {[%emt 0:01:16]} 25. Rc2 {[%emt 0:03:39]} Rab8 {[%emt 0:00:18]} 26. Rb1 {[%emt 0:01:59]} Rb5 {[%emt 0:05:52]} 27. Nd2 {[%emt 0:00:28]} Rfb8 {[%emt 0:01:46]} 28. a6 {[%emt 0:01:58]} c4 {[%emt 0:05:32]} 29. Bf1 {[%emt 0:01:12]} Rxb2 {[%emt 0:00:48]} 30. Rcxb2 {[%emt 0:00:53]} Rxb2 {[%emt 0:00:10]} 31. Rxb2 {[%emt 0:01:21]} Bxb2 {[%emt 0:00:08]} 0-1

[Event "Portugal Honour 2021"]
[Site "Fatima"]
[Date "2021.04.07"]
[Round "2.7"]
[White "Santos, Ruben"]
[Black "Sarabando, Rodrigo"]
[Result "1-0"]
[ECO "E87"]
[WhiteElo "1759"]
[BlackElo "1682"]
[Annotator "NA RC"]
[PlyCount "117"]
[EventDate "2021.04.06"]
[EventType "tourn"]
[EventCountry "POR"]
[SourceTitle "playchess.com"]
[Source "ChessBase"]
[SourceQuality "1"]
[TimeControl "5400+30"]

1. d4 {[%emt 0:00:00]} Nf6 {[%emt 0:03:28]} 2. c4 {[%emt 0:02:49]} g6 {[%emt 0:00:28]} 3. Nc3 {[%emt 0:00:09]} Bg7 {[%emt 0:00:19]} 4. e4 {[%emt 0:00:11]} d6 {[%emt 0:00:49]} 5. f3 {[%emt 0:00:08]} O-O {[%emt 0:01:19]} 6. Be3 {[%emt 0:00:07]} e5 {[%emt 0:01:32]} 7. d5 {[%emt 0:00:42]} a5 {[%emt 0:00:39]} 8. a3 {[%emt 0:01:17]} Nfd7 {[%emt 0:01:35]} 9. b4 {[%emt 0:00:57]} axb4 {[%emt 0:03:49]} 10. axb4 {[%emt 0:00:33]} Rxa1 {[%emt 0:00:40]} 11. Qxa1 {[%emt 0:00:03]} Na6 {[%emt 0:00:15]} 12. Qa3 {[%emt 0:02:26]} f5 {[%emt 0:01:59]} 13. c5 {[%emt 0:00:47]} dxc5 {[%emt 0:06:39]} 14. bxc5 {[%emt 0:03:32]} Re8 {[%emt 0:06:48]} 15. Bc4 {[%emt 0:06:57]} Bf8 {[%emt 0:05:53]} 16. Na4 {[%emt 0:10:06]} fxe4 {[%emt 0:04:41]} 17. g3 {[%emt 0:28:05]} Nf6 {[%emt 0:06:08]} 18. fxe4 {[%emt 0:05:41]} Nxe4 {[%emt 0:04:33]} 19. Ne2 {[%emt 0:07:04]} Kh8 {[%emt 0:07:58]} 20. Nec3 {[%emt 0:02:34]} Bf5 {[%emt 0:02:30]} 21. O-O {[%emt 0:01:25]} h5 {[%emt 0:02:11]} 22. Nxe4 {[%emt 0:01:10]} Bxe4 {[%emt 0:00:29]} 23. Nc3 {[%emt 0:00:03]} Bf5 {[%emt 0:01:01]} 24. Bb5 {[%emt 0:02:06]} Bd7 {[%emt 0:02:14]} 25. Bxa6 {[%emt 0:11:27]} bxa6 {[%emt 0:00:25]} 26. Qxa6 {[%emt 0:00:09]} Bf5 {[%emt 0:01:10]} 27. Qe2 {[%emt 0:03:12]} Bg7 {[%emt 0:01:04]} 28. Rxf5 {[%emt 0:01:46]} gxf5 {[%emt 0:00:06]} 29. Qxh5+ {[%emt 0:00:19]} Kg8 {[%emt 0:00:03]} 30. Qxf5 {[%emt 0:00:34]} Qa8 {[%emt 0:00:32]} 31. Qc2 {[%emt 0:08:06]} Qa1+ {[%emt 0:00:34]} 32. Kg2 {[%emt 0:00:14]} Rf8 {[%emt 0:00:17]} 33. Bf2 {[%emt 0:00:55]} e4 {[%emt 0:06:07]} 34. Nxe4 {[%emt 0:00:41]} Bd4 {[%emt 0:00:28]} 35. d6 {[%emt 0:00:20]} Bxf2 {[%emt 0:00:47]} 36. Nxf2 {[%emt 0:00:12]} Rf7 {[%emt 0:03:20]} 37. dxc7 {[%emt 0:00:31]} Rxc7 {[%emt 0:00:13]} 38. Qc4+ {[%emt 0:00:28]} Kf8 {[%emt 0:01:24]} 39. c6 {[%emt 0:00:22]} Qg7 {[%emt 0:01:01]} 40. Qf4+ {[%emt 0:00:37]} Ke8 {[%emt 0:00:07]} 41. Nd3 {[%emt 0:00:54]} Rxc6 {[%emt 0:05:10]} 42. Qe4+ {[%emt 0:00:17]} Kd8 {[%emt 0:01:27]} 43. Qxc6 {[%emt 0:00:29]} Qd4 {[%emt 0:00:01]} 44. Nf2 {[%emt 0:00:34]} Qd2 {[%emt 0:00:14]} 45. Qf6+ {[%emt 0:00:16]} Ke8 {[%emt 0:00:10]} 46. Qe5+ {[%emt 0:00:14]} Kd8 {[%emt 0:00:24]} 47. h4 {[%emt 0:00:50]} Kd7 {[%emt 0:00:08]} 48. h5 {[%emt 0:00:25]} Qc2 {[%emt 0:00:02]} 49. g4 {[%emt 0:00:35]} Kd8 {[%emt 0:00:07]} 50. h6 {[%emt 0:00:38]} Qc6+ {[%emt 0:00:15]} 51. Ne4 {[%emt 0:00:01]} Qc2+ {[%emt 0:00:02]} 52. Kg3 {[%emt 0:00:33]} Qd3+ {[%emt 0:00:17]} 53. Kh4 {[%emt 0:00:20]} Qb1 {[%emt 0:00:22]} 54. Nf6 {[%emt 0:00:51]} Qh1+ {[%emt 0:00:11]} 55. Kg5 {[%emt 0:00:11]} Qc1+ {[%emt 0:00:01]} 56. Kg6 {[%emt 0:00:26]} Qb1+ {[%emt 0:00:15]} 57. Ne4 {[%emt 0:00:24]} Qa2 {[%emt 0:00:18]} 58. Qf6+ {[%emt 0:00:26]} Kc8 {[%emt 0:00:09]} 59. Qf8+ {[%emt 0:00:33]} 1-0

[Event "Portugal Honour 2021"]
[Site "Fatima"]
[Date "2021.04.07"]
[Round "2.8"]
[White "Lavrador, Rodolfo"]
[Black "Pina, Tiago"]
[Result "0-1"]
[ECO "B21"]
[WhiteElo "1815"]
[BlackElo "1843"]
[Annotator "NA RC"]
[PlyCount "58"]
[EventDate "2021.04.06"]
[EventType "tourn"]
[EventCountry "POR"]
[SourceTitle "playchess.com"]
[Source "ChessBase"]
[SourceQuality "1"]
[TimeControl "5400+30"]

1. e4 {[%emt 0:00:00]} c5 {[%emt 0:00:00]} 2. d4 {[%emt 0:00:23]} cxd4 {[%emt 0:00:00]} 3. c3 {[%emt 0:00:13]} Nf6 {[%emt 0:00:00]} 4. e5 {[%emt 0:02:16]} Nd5 {[%emt 0:00:01]} 5. cxd4 {[%emt 0:01:39]} Nc6 {[%emt 0:00:26]} 6. Bc4 {[%emt 0:05:35]} Nb6 {[%emt 0:00:41]} 7. Bb3 {[%emt 0:00:39]} d6 {[%emt 0:01:17]} 8. Nf3 {[%emt 0:07:30]} dxe5 {[%emt 0:01:21]} 9. dxe5 {[%emt 0:08:34]} Qxd1+ {[%emt 0:00:29]} 10. Bxd1 {[%emt 0:00:15]} g6 {[%emt 0:00:13]} 11. O-O {[%emt 0:01:55]} Bg7 {[%emt 0:00:13]} 12. Bf4 {[%emt 0:01:46]} O-O {[%emt 0:00:25]} 13. Nc3 {[%emt 0:00:34]} Nc4 {[%emt 0:15:41]} 14. Re1 {[%emt 0:04:57]} Bg4 {[%emt 0:06:06]} 15. h3 {[%emt 0:07:37]} Bxf3 {[%emt 0:00:36]} 16. Bxf3 {[%emt 0:00:13]} N4xe5 {[%emt 0:02:40]} 17. Bxe5 {[%emt 0:03:01]} Nxe5 {[%emt 0:00:16]} 18. Bxb7 {[%emt 0:01:49]} Rab8 {[%emt 0:00:13]} 19. Bd5 {[%emt 0:00:21]} Rxb2 {[%emt 0:00:36]} 20. Rad1 {[%emt 0:01:08]} e6 {[%emt 0:05:49]} 21. Bb3 {[%emt 0:00:57]} Nf3+ {[%emt 0:01:31]} 22. gxf3 {[%emt 0:00:35]} Bxc3 {[%emt 0:00:06]} 23. Re3 {[%emt 0:02:21]} Ba5 {[%emt 0:00:45]} 24. Kf1 {[%emt 0:02:55]} Bb6 {[%emt 0:02:50]} 25. Re2 {[%emt 0:00:13]} Rxe2 {[%emt 0:00:02]} 26. Kxe2 {[%emt 0:00:11]} Rc8 {[%emt 0:00:19]} 27. Rd2 {[%emt 0:03:15]} Rc1 {[%emt 0:02:01]} 28. f4 {[%emt 0:01:07]} Rc3 {[%emt 0:02:40]} 29. f3 {[%emt 0:02:44]} Re3+ {[%emt 0:00:21]} 0-1